{"text_format":"3","workbook":"xlsx","n_sheets":2,"sheets":["Start","Jahresarbeitszeittabelle"],"not_rendered":{"defined_names":2},"read":"whole","date_system":"1900"}

{"sheet":"Start","index":0,"n_rows":8,"n_cols":2,"rows_kept":8}
[null,"Über diese Vorlage"]
[null,"Erfassen Sie Ihre Stunden täglich, wöchentlich, monatlich und jährlich in dieser Zeitkarte für Mitarbeiter."]
[null,"Geben Sie grundlegende Informationen wie Mitarbeitername, Name des Vorgesetzten, E-Mail-Adresse und Telefonnummer ein. "]
[null,"Fügen Sie Ihre Stunden zu jeder Monatstabelle hinzu. Protokollieren Sie reguläre Stunden und Überstunden in separaten Spalten für jeden Wochentag jeder Woche. "]
[null,"Gesamtarbeitsstunden, reguläre Stunden und Überstunden werden automatisch berechnet. "]
[null,"Notizen:  "]
[null,"Zusätzliche Anweisungen sind in Spalte A des Arbeitsblatts JAHRESZEITENBLATT enthalten. Dieser Text wurde absichtlich ausgeblendet. Um die Texte zu entfernen, wählen Sie Spalte A und dann ENTF aus. Um die Texte einzublenden, wählen Sie Spalte A aus, und ändern Sie die Schriftfarbe. "]
[null,"Um mehr über Tabellen zu erfahren, drücken Sie die UMSCHALTTASTE und dann F10 innerhalb einer Tabelle, wählen Sie die Option TABELLE und dann ALTERNATIVTEXT aus."]

{"sheet":"Jahresarbeitszeittabelle","index":1,"n_rows":138,"n_cols":15,"rows_kept":138,"merged":[[1,1,22,1],[1,5,1,6],[2,5,2,6],[3,5,3,6]]}
[]
[null,"MITARBEITERZEITKARTE",null,null,"Mitarbeitername:","Mohan Narang",null,"Reguläre Arbeitsstunden:",null,"Überstunden:",null,"Ergebnis",null,"Vorgesetzter:"]
[{"$nulls":4},"E-Mail:","mohan@example.com",null,{"$f":"ReguläreStd","v":400},null,{"$f":"Überstunden","v":2},null,{"$f":"ReguläreStd+Überstunden","v":402},null,"Shir Rosenstein"]
[{"$nulls":4},"Telefon:","(212) 555-0123"]
[]
[]
[" ",{"$nulls":3},"Januar, Februar, März   |   Mitarbeiterzeitkarte: täglich, wöchentlich, monatlich, jährlich"]
[" ",{"$nulls":3},"Januar","Woche 1","Überstunden","Woche 2","Überstunden  ","Woche 3","Überstunden   ","Woche 4","Überstunden    ","Woche 5","Überstunden     "]
[" ",{"$nulls":3},"Montag",{"v":8,"d":"8.0"},null,{"v":8,"d":"8.0"},null,{"v":8,"d":"8.0"},null,{"v":8,"d":"8.0"},null,{"v":8,"d":"8.0"}]
[" ",{"$nulls":3},"Dienstag",{"v":8,"d":"8.0"},{"v":2,"d":"2.0"},{"v":8,"d":"8.0"},null,{"v":8,"d":"8.0"},null,{"v":8,"d":"8.0"},null,{"v":8,"d":"8.0"}]
[" ",{"$nulls":3},"Mittwoch",{"v":8,"d":"8.0"},null,{"v":8,"d":"8.0"},null,{"v":8,"d":"8.0"},null,{"v":8,"d":"8.0"},null,{"v":8,"d":"8.0"}]
[{"$nulls":4},"Donnerstag",{"v":8,"d":"8.0"},null,{"v":8,"d":"8.0"},null,{"v":8,"d":"8.0"},null,{"v":8,"d":"8.0"},null,{"v":8,"d":"8.0"}]
[{"$nulls":4},"Freitag",{"v":8,"d":"8.0"},null,{"v":8,"d":"8.0"},null,{"v":8,"d":"8.0"},null,{"v":8,"d":"8.0"},null,{"v":8,"d":"8.0"}]
[{"$nulls":4},"Samstag"]
[" ",{"$nulls":3},"Sonntag"]
[" ",{"$nulls":3},"Wöchentliche Stunden gesamt",{"$f":"SUM(F9:F15)","v":{"v":40,"d":"40.0"}},{"v":2,"d":"2.0"},{"v":40,"d":"40.0"},{"v":0,"d":"0.0"},{"v":40,"d":"40.0"},{"v":0,"d":"0.0"},{"v":40,"d":"40.0"},{"v":0,"d":"0.0"},{"v":40,"d":"40.0"},{"v":0,"d":"0.0"}]
[" ",{"$nulls":3},{"$f":"TEXT(DATEVALUE(Januar[[#Headers],[Januar]]&\"  \"&YEAR(TODAY())),\"MMM.\")&\" Gesamt: Reguläre Arbeitsstunden\"","v":"Jan. Gesamt: Reguläre Arbeitsstunden"},{"$f":"SUM(Januar[Woche 1],Januar[Woche 2],Januar[Woche 3],Januar[Woche 4],Januar[Woche 5])","v":{"v":200,"d":"200.0"}},{"$nulls":5},{"$f":"TEXT(DATEVALUE(Januar[[#Headers],[Januar]]&\"  \"&YEAR(TODAY())),\"MMM.\")&\" gesamt: Überstunden\"","v":"Jan. gesamt: Überstunden"},null,{"$f":"SUM(Januar[Überstunden],Januar[[Überstunden  ]],Januar[[Überstunden   ]],Januar[[Überstunden    ]],Januar[[Überstunden     ]])","v":{"v":2,"d":"2.0"}}]
[]
[" ",{"$nulls":3},"Februar","Woche 1","Überstunden","Woche 2","Überstunden  ","Woche 3","Überstunden   ","Woche 4","Überstunden    ","Woche 5","Überstunden     "]
[{"$nulls":4},"Montag",{"v":8,"d":"8.0"},null,{"v":8,"d":"8.0"},null,{"v":8,"d":"8.0"},null,{"v":8,"d":"8.0"},null,{"v":8,"d":"8.0"}]
[{"$nulls":4},"Dienstag",{"v":8,"d":"8.0"},{"v":2,"d":"2.0"},{"v":8,"d":"8.0"},null,{"v":8,"d":"8.0"},null,{"v":8,"d":"8.0"},null,{"v":8,"d":"8.0"}]
[{"$nulls":4},"Mittwoch",{"v":8,"d":"8.0"},null,{"v":8,"d":"8.0"},null,{"v":8,"d":"8.0"},null,{"v":8,"d":"8.0"},null,{"v":8,"d":"8.0"}]
[{"$nulls":4},"Donnerstag",{"v":8,"d":"8.0"},null,{"v":8,"d":"8.0"},null,{"v":8,"d":"8.0"},3.5,{"v":8,"d":"8.0"},null,{"v":8,"d":"8.0"}]
[{"$nulls":4},"Freitag",{"v":8,"d":"8.0"},null,{"v":8,"d":"8.0"},null,{"v":8,"d":"8.0"},null,{"v":8,"d":"8.0"},null,{"v":8,"d":"8.0"}]
[{"$nulls":4},"Samstag"]
[{"$nulls":4},"Sonntag"]
[{"$nulls":4},"Wöchentliche Stunden gesamt",{"$f":"SUM(F20:F26)","v":{"v":40,"d":"40.0"}},{"v":2,"d":"2.0"},{"v":40,"d":"40.0"},{"v":0,"d":"0.0"},{"v":40,"d":"40.0"},3.5,{"v":40,"d":"40.0"},{"v":0,"d":"0.0"},{"v":40,"d":"40.0"},{"v":0,"d":"0.0"}]
[" ",{"$nulls":3},{"$f":"TEXT(DATEVALUE(Februar[[#Headers],[Februar]]&\"  \"&YEAR(TODAY())),\"MMM.\")&\" Gesamt: Reguläre Arbeitsstunden\"","v":"Feb. Gesamt: Reguläre Arbeitsstunden"},{"$f":"SUM(Februar[Woche 1],Februar[Woche 2],Februar[Woche 3],Februar[Woche 4],Februar[Woche 5])","v":{"v":200,"d":"200.0"}},{"$nulls":5},{"$f":"TEXT(DATEVALUE(Februar[[#Headers],[Februar]]&\" \"&YEAR(TODAY())),\"MMM.\")&\" gesamt: Überstunden\"","v":"Feb. gesamt: Überstunden"},null,{"$f":"SUM(Februar[Überstunden],Februar[[Überstunden  ]],Februar[[Überstunden   ]],Februar[[Überstunden    ]],Februar[[Überstunden     ]])","v":5.5}]
[]
[" ",{"$nulls":3},"März","Woche 1","Überstunden","Woche 2","Überstunden  ","Woche 3","Überstunden ","Woche 4","Überstunden    ","Woche 5","Überstunden     "]
[{"$nulls":4},"Montag"]
[{"$nulls":4},"Dienstag"]
[{"$nulls":4},"Mittwoch"]
[{"$nulls":4},"Donnerstag"]
[{"$nulls":4},"Freitag"]
[{"$nulls":4},"Samstag"]
[{"$nulls":4},"Sonntag"]
[{"$nulls":4},"Wöchentliche Stunden gesamt",{"$f":"SUM(F31:F37)","v":{"v":0,"d":"0.0"}},{"v":0,"d":"0.0"},{"v":0,"d":"0.0"},{"v":0,"d":"0.0"},{"v":0,"d":"0.0"},{"v":0,"d":"0.0"},{"v":0,"d":"0.0"},{"v":0,"d":"0.0"},{"v":0,"d":"0.0"},{"v":0,"d":"0.0"}]
[" ",{"$nulls":3},{"$f":"TEXT(DATEVALUE(März[[#Headers],[März]]&\" \"&YEAR(TODAY())),\"MMM.\")&\" Gesamt: Reguläre Arbeitsstunden\"","v":"Mrz. Gesamt: Reguläre Arbeitsstunden"},{"$f":"SUM(März[Woche 1],März[Woche 2],März[Woche 3],März[Woche 4],März[Woche 5])","v":{"v":0,"d":"0.0"}},{"$nulls":5},{"$f":"TEXT(DATEVALUE(März[[#Headers],[März]]&\" \"&YEAR(TODAY())),\"MMM.\")&\" gesamt: Überstunden\"","v":"Mrz. gesamt: Überstunden"},null,{"$f":"SUM(März[Überstunden],März[[Überstunden  ]],März[[Überstunden ]],März[[Überstunden    ]],März[[Überstunden     ]])","v":{"v":0,"d":"0.0"}}]
[" ",{"$nulls":3},"April, Mai, Juni   |   Mitarbeiterzeitkarte: Täglich, wöchentlich, monatlich, jährlich"]
[" ",{"$nulls":3},"April","Woche 1","Überstunden","Woche 2","Überstunden  ","Woche 3","Überstunden   ","Woche 4","Überstunden    ","Woche 5","Überstunden     "]
[{"$nulls":4},"Montag"]
[{"$nulls":4},"Dienstag"]
[{"$nulls":4},"Mittwoch"]
[{"$nulls":4},"Donnerstag"]
[{"$nulls":4},"Freitag"]
[{"$nulls":4},"Samstag"]
[{"$nulls":4},"Sonntag"]
[{"$nulls":4},"Wöchentliche Stunden gesamt",{"$f":"SUM(F42:F48)","v":{"v":0,"d":"0.0"}},{"v":0,"d":"0.0"},{"v":0,"d":"0.0"},{"v":0,"d":"0.0"},{"v":0,"d":"0.0"},{"v":0,"d":"0.0"},{"v":0,"d":"0.0"},{"v":0,"d":"0.0"},{"v":0,"d":"0.0"},{"v":0,"d":"0.0"}]
[" ",{"$nulls":3},{"$f":"TEXT(DATEVALUE(April[[#Headers],[April]]&\" \"&YEAR(TODAY())),\"MMM.\")&\" Gesamt: Reguläre Arbeitsstunden\"","v":"Apr. Gesamt: Reguläre Arbeitsstunden"},{"$f":"SUM(April[Woche 1],April[Woche 2],April[Woche 3],April[Woche 4],April[Woche 5])","v":{"v":0,"d":"0.0"}},{"$nulls":5},{"$f":"TEXT(DATEVALUE(April[[#Headers],[April]]&\" \"&YEAR(TODAY())),\"MMM.\")&\" gesamt: Überstunden\"","v":"Apr. gesamt: Überstunden"},null,{"$f":"SUM(April[Überstunden],April[[Überstunden  ]],April[[Überstunden   ]],April[[Überstunden    ]],April[[Überstunden     ]])","v":{"v":0,"d":"0.0"}}]
[]
[" ",{"$nulls":3},"Mai","Woche 1","Überstunden","Woche 2","Überstunden  ","Woche 3","Überstunden   ","Woche 4","Überstunden    ","Woche 5","Überstunden     "]
[{"$nulls":4},"Montag"]
[{"$nulls":4},"Dienstag"]
[{"$nulls":4},"Mittwoch"]
[{"$nulls":4},"Donnerstag"]
[{"$nulls":4},"Freitag"]
[{"$nulls":4},"Samstag"]
[{"$nulls":4},"Sonntag"]
[{"$nulls":4},"Wöchentliche Stunden gesamt",{"$f":"SUM(F53:F59)","v":{"v":0,"d":"0.0"}},{"v":0,"d":"0.0"},{"v":0,"d":"0.0"},{"v":0,"d":"0.0"},{"v":0,"d":"0.0"},{"v":0,"d":"0.0"},{"v":0,"d":"0.0"},{"v":0,"d":"0.0"},{"v":0,"d":"0.0"},{"v":0,"d":"0.0"}]
[" ",{"$nulls":3},{"$f":"TEXT(DATEVALUE(Mai[[#Headers],[Mai]]&\" \"&YEAR(TODAY())),\"MMM.\")&\" Gesamt: Reguläre Arbeitsstunden\"","v":"Mai. Gesamt: Reguläre Arbeitsstunden"},{"$f":"SUM(Mai[Woche 1],Mai[Woche 2],Mai[Woche 3],Mai[Woche 4],Mai[Woche 5])","v":{"v":0,"d":"0.0"}},{"$nulls":5},{"$f":"TEXT(DATEVALUE(Mai[[#Headers],[Mai]]&\" \"&YEAR(TODAY())),\"MMM.\")&\" gesamt: Überstunden\"","v":"Mai. gesamt: Überstunden"},null,{"$f":"SUM(Mai[Überstunden],Mai[[Überstunden  ]],Mai[[Überstunden   ]],Mai[[Überstunden    ]],Mai[[Überstunden     ]])","v":{"v":0,"d":"0.0"}}]
[]
[" ",{"$nulls":3},"Juni","Woche 1","Überstunden","Woche 2","Überstunden  ","Woche 3","Überstunden   ","Woche 4","Überstunden    ","Woche 5","Überstunden     "]
[{"$nulls":4},"Montag"]
[{"$nulls":4},"Dienstag"]
[{"$nulls":4},"Mittwoch"]
[{"$nulls":4},"Donnerstag"]
[{"$nulls":4},"Freitag"]
[{"$nulls":4},"Samstag"]
[{"$nulls":4},"Sonntag"]
[{"$nulls":4},"Wöchentliche Stunden gesamt",{"$f":"SUM(F64:F70)","v":{"v":0,"d":"0.0"}},{"v":0,"d":"0.0"},{"v":0,"d":"0.0"},{"v":0,"d":"0.0"},{"v":0,"d":"0.0"},{"v":0,"d":"0.0"},{"v":0,"d":"0.0"},{"v":0,"d":"0.0"},{"v":0,"d":"0.0"},{"v":0,"d":"0.0"}]
[" ",{"$nulls":3},{"$f":"TEXT(DATEVALUE(Juni[[#Headers],[Juni]]&\" \"&YEAR(TODAY())),\"MMM.\")&\" Gesamt: Reguläre Arbeitsstunden\"","v":"Jun. Gesamt: Reguläre Arbeitsstunden"},{"$f":"SUM(Juni[Woche 1],Juni[Woche 2],Juni[Woche 3],Juni[Woche 4],Juni[Woche 5])","v":{"v":0,"d":"0.0"}},{"$nulls":5},{"$f":"TEXT(DATEVALUE(Juni[[#Headers],[Juni]]&\" \"&YEAR(TODAY())),\"MMM.\")&\" gesamt: Überstunden\"","v":"Jun. gesamt: Überstunden"},null,{"$f":"SUM(Juni[Überstunden],Juni[[Überstunden  ]],Juni[[Überstunden   ]],Juni[[Überstunden    ]],Juni[[Überstunden     ]])","v":{"v":0,"d":"0.0"}}]
[" ",{"$nulls":3},"Juli, August, September   |   Mitarbeiterzeitkarte: Täglich, wöchentlich, monatlich, jährlich"]
[" ",{"$nulls":3},"Juli","Woche 1","Überstunden","Woche 2","Überstunden ","Woche 3","Überstunden  ","Woche 4","Überstunden   ","Woche 5","Überstunden     "]
[{"$nulls":4},"Montag"]
[{"$nulls":4},"Dienstag"]
[{"$nulls":4},"Mittwoch"]
[{"$nulls":4},"Donnerstag"]
[{"$nulls":4},"Freitag"]
[{"$nulls":4},"Samstag"]
[{"$nulls":4},"Sonntag"]
[{"$nulls":4},"Wöchentliche Stunden gesamt",{"$f":"SUM(F75:F81)","v":{"v":0,"d":"0.0"}},{"v":0,"d":"0.0"},{"v":0,"d":"0.0"},{"v":0,"d":"0.0"},{"v":0,"d":"0.0"},{"v":0,"d":"0.0"},{"v":0,"d":"0.0"},{"v":0,"d":"0.0"},{"v":0,"d":"0.0"},{"v":0,"d":"0.0"}]
[" ",{"$nulls":3},{"$f":"TEXT(DATEVALUE(Juli[[#Headers],[Juli]]&\" \"&YEAR(TODAY())),\"MMM.\")&\" Gesamt: Reguläre Arbeitsstunden\"","v":"Jul. Gesamt: Reguläre Arbeitsstunden"},{"$f":"SUM(Juli[Woche 1],Juli[Woche 2],Juli[Woche 3],Juli[Woche 4],Juli[Woche 5])","v":{"v":0,"d":"0.0"}},{"$nulls":5},{"$f":"TEXT(DATEVALUE(Juli[[#Headers],[Juli]]&\" \"&YEAR(TODAY())),\"MMM.\")&\" gesamt: Überstunden\"","v":"Jul. gesamt: Überstunden"},null,{"$f":"SUM(Juli[Überstunden],Juli[[Überstunden ]],Juli[[Überstunden  ]],Juli[[Überstunden   ]],Juli[[Überstunden     ]])","v":{"v":0,"d":"0.0"}}]
[]
[" ",{"$nulls":3},"August","Woche 1","Überstunden","Woche 2","Überstunden ","Woche 3","Überstunden   ","Woche 4","Überstunden  ","Woche 5","Überstunden    "]
[{"$nulls":4},"Montag"]
[{"$nulls":4},"Dienstag"]
[{"$nulls":4},"Mittwoch"]
[{"$nulls":4},"Donnerstag"]
[{"$nulls":4},"Freitag"]
[{"$nulls":4},"Samstag"]
[{"$nulls":4},"Sonntag"]
[{"$nulls":4},"Wöchentliche Stunden gesamt",{"$f":"SUBTOTAL(109,August[Woche 1])","v":{"v":0,"d":"0.0"}},{"$f":"SUBTOTAL(109,August[Überstunden])","v":{"v":0,"d":"0.0"}},{"$f":"SUBTOTAL(109,August[Woche 2])","v":{"v":0,"d":"0.0"}},{"$f":"SUBTOTAL(109,August[[Überstunden ]])","v":{"v":0,"d":"0.0"}},{"$f":"SUBTOTAL(109,August[Woche 3])","v":{"v":0,"d":"0.0"}},{"$f":"SUBTOTAL(109,August[[Überstunden   ]])","v":{"v":0,"d":"0.0"}},{"$f":"SUBTOTAL(109,August[Woche 4])","v":{"v":0,"d":"0.0"}},{"$f":"SUBTOTAL(109,August[[Überstunden  ]])","v":{"v":0,"d":"0.0"}},{"$f":"SUBTOTAL(109,August[Woche 5])","v":{"v":0,"d":"0.0"}},{"$f":"SUBTOTAL(109,August[[Überstunden    ]])","v":{"v":0,"d":"0.0"}}]
[" ",{"$nulls":3},{"$f":"TEXT(DATEVALUE(August[[#Headers],[August]]&\" \"&YEAR(TODAY())),\"MMM.\")&\" Gesamt: Reguläre Arbeitsstunden\"","v":"Aug. Gesamt: Reguläre Arbeitsstunden"},{"$f":"SUM(August[Woche 1],August[Woche 2],August[Woche 3],August[Woche 4],August[Woche 5])","v":{"v":0,"d":"0.0"}},{"$nulls":5},{"$f":"TEXT(DATEVALUE(August[[#Headers],[August]]&\" \"&YEAR(TODAY())),\"MMM.\")&\" gesamt: Überstunden\"","v":"Aug. gesamt: Überstunden"},null,{"$f":"SUM(August[Überstunden],August[[Überstunden ]],August[[Überstunden   ]],August[[Überstunden  ]],August[[Überstunden    ]])","v":{"v":0,"d":"0.0"}}]
[]
[" ",{"$nulls":3},"September","Woche 1","Überstunden","Woche 2","Überstunden ","Woche 3","Überstunden  ","Woche 4","Überstunden   ","Woche 5","Überstunden    "]
[{"$nulls":4},"Montag"]
[{"$nulls":4},"Dienstag"]
[{"$nulls":4},"Mittwoch"]
[{"$nulls":4},"Donnerstag"]
[{"$nulls":4},"Freitag"]
[{"$nulls":4},"Samstag"]
[{"$nulls":4},"Sonntag"]
[{"$nulls":4},"Wöchentliche Stunden gesamt",{"$f":"SUBTOTAL(109,September[Woche 1])","v":{"v":0,"d":"0.0"}},{"$f":"SUBTOTAL(109,September[Überstunden])","v":{"v":0,"d":"0.0"}},{"$f":"SUBTOTAL(109,September[Woche 2])","v":{"v":0,"d":"0.0"}},{"$f":"SUBTOTAL(109,September[[Überstunden ]])","v":{"v":0,"d":"0.0"}},{"$f":"SUBTOTAL(109,September[Woche 3])","v":{"v":0,"d":"0.0"}},{"$f":"SUBTOTAL(109,September[[Überstunden  ]])","v":{"v":0,"d":"0.0"}},{"$f":"SUBTOTAL(109,September[Woche 4])","v":{"v":0,"d":"0.0"}},{"$f":"SUBTOTAL(109,September[[Überstunden   ]])","v":{"v":0,"d":"0.0"}},{"$f":"SUBTOTAL(109,September[Woche 5])","v":{"v":0,"d":"0.0"}},{"$f":"SUBTOTAL(109,September[[Überstunden    ]])","v":{"v":0,"d":"0.0"}}]
[" ",{"$nulls":3},{"$f":"TEXT(DATEVALUE(September[[#Headers],[September]]&\" \"&YEAR(TODAY())),\"MMM.\")&\" Gesamt: Reguläre Arbeitsstunden\"","v":"Sep. Gesamt: Reguläre Arbeitsstunden"},{"$f":"SUM(September[Woche 1],September[Woche 2],September[Woche 3],September[Woche 4],September[Woche 5])","v":{"v":0,"d":"0.0"}},{"$nulls":5},{"$f":"TEXT(DATEVALUE(September[[#Headers],[September]]&\" \"&YEAR(TODAY())),\"MMM.\")&\" gesamt: Überstunden\"","v":"Sep. gesamt: Überstunden"},null,{"$f":"SUM(September[Überstunden],September[[Überstunden ]],September[[Überstunden  ]],September[[Überstunden   ]],September[[Überstunden    ]])","v":{"v":0,"d":"0.0"}}]
[" ",{"$nulls":3},"Oktober, November, Dezember   |   Mitarbeiterzeitkarte: Täglich, wöchentlich, monatlich, jährlich"]
[" ",{"$nulls":3},"Oktober","Woche 1","Überstunden","Woche 2","Überstunden ","Woche 3","Überstunden  ","Woche 4","Überstunden   ","Woche 5","Überstunden    "]
[{"$nulls":4},"Montag"]
[{"$nulls":4},"Dienstag"]
[{"$nulls":4},"Mittwoch"]
[{"$nulls":4},"Donnerstag"]
[{"$nulls":4},"Freitag"]
[{"$nulls":4},"Samstag"]
[{"$nulls":4},"Sonntag"]
[{"$nulls":4},"Wöchentliche Stunden gesamt",{"$f":"SUBTOTAL(109,Oktober[Woche 1])","v":{"v":0,"d":"0.0"}},{"$f":"SUBTOTAL(109,Oktober[Überstunden])","v":{"v":0,"d":"0.0"}},{"$f":"SUBTOTAL(109,Oktober[Woche 2])","v":{"v":0,"d":"0.0"}},{"$f":"SUBTOTAL(109,Oktober[[Überstunden ]])","v":{"v":0,"d":"0.0"}},{"$f":"SUBTOTAL(109,Oktober[Woche 3])","v":{"v":0,"d":"0.0"}},{"$f":"SUBTOTAL(109,Oktober[[Überstunden  ]])","v":{"v":0,"d":"0.0"}},{"$f":"SUBTOTAL(109,Oktober[Woche 4])","v":{"v":0,"d":"0.0"}},{"$f":"SUBTOTAL(109,Oktober[[Überstunden   ]])","v":{"v":0,"d":"0.0"}},{"$f":"SUBTOTAL(109,Oktober[Woche 5])","v":{"v":0,"d":"0.0"}},{"$f":"SUBTOTAL(109,Oktober[[Überstunden    ]])","v":{"v":0,"d":"0.0"}}]
[" ",{"$nulls":3},{"$f":"TEXT(DATEVALUE(Oktober[[#Headers],[Oktober]]&\" \"&YEAR(TODAY())),\"MMM.\")&\" Gesamt: Reguläre Arbeitsstunden\"","v":"Okt. Gesamt: Reguläre Arbeitsstunden"},{"$f":"SUM(Oktober[Woche 1],Oktober[Woche 2],Oktober[Woche 3],Oktober[Woche 4],Oktober[Woche 5])","v":{"v":0,"d":"0.0"}},{"$nulls":5},{"$f":"TEXT(DATEVALUE(Oktober[[#Headers],[Oktober]]&\" \"&YEAR(TODAY())),\"MMM.\")&\" gesamt: Überstunden\"","v":"Okt. gesamt: Überstunden"},null,{"$f":"SUM(Oktober[Überstunden],Oktober[[Überstunden ]],Oktober[[Überstunden  ]],Oktober[[Überstunden   ]],Oktober[[Überstunden    ]])","v":{"v":0,"d":"0.0"}}]
[]
[" ",{"$nulls":3},"November","Woche 1","Überstunden","Woche 2","Überstunden ","Woche 3","Überstunden  ","Woche 4","Überstunden    ","Woche 5","Überstunden     "]
[{"$nulls":4},"Montag"]
[{"$nulls":4},"Dienstag"]
[{"$nulls":4},"Mittwoch"]
[{"$nulls":4},"Donnerstag"]
[{"$nulls":4},"Freitag"]
[{"$nulls":4},"Samstag"]
[{"$nulls":4},"Sonntag"]
[{"$nulls":4},"Wöchentliche Stunden gesamt",{"$f":"SUBTOTAL(109,November[Woche 1])","v":{"v":0,"d":"0.0"}},{"$f":"SUBTOTAL(109,November[Überstunden])","v":{"v":0,"d":"0.0"}},{"$f":"SUBTOTAL(109,November[Woche 2])","v":{"v":0,"d":"0.0"}},{"$f":"SUBTOTAL(109,November[[Überstunden ]])","v":{"v":0,"d":"0.0"}},{"$f":"SUBTOTAL(109,November[Woche 3])","v":{"v":0,"d":"0.0"}},{"$f":"SUBTOTAL(109,November[[Überstunden  ]])","v":{"v":0,"d":"0.0"}},{"$f":"SUBTOTAL(109,November[Woche 4])","v":{"v":0,"d":"0.0"}},{"$f":"SUBTOTAL(109,November[[Überstunden    ]])","v":{"v":0,"d":"0.0"}},{"$f":"SUBTOTAL(109,November[Woche 5])","v":{"v":0,"d":"0.0"}},{"$f":"SUBTOTAL(109,November[[Überstunden     ]])","v":{"v":0,"d":"0.0"}}]
[" ",{"$nulls":3},{"$f":"TEXT(DATEVALUE(November[[#Headers],[November]]&\" \"&YEAR(TODAY())),\"MMM.\")&\" Gesamt: Reguläre Arbeitsstunden\"","v":"Nov. Gesamt: Reguläre Arbeitsstunden"},{"$f":"SUM(November[Woche 1],November[Woche 2],November[Woche 3],November[Woche 4],November[Woche 5])","v":{"v":0,"d":"0.0"}},{"$nulls":5},{"$f":"TEXT(DATEVALUE(November[[#Headers],[November]]&\" \"&YEAR(TODAY())),\"MMM.\")&\" gesamt: Überstunden\"","v":"Nov. gesamt: Überstunden"},null,{"$f":"SUM(November[Überstunden],November[[Überstunden ]],November[[Überstunden  ]],November[[Überstunden    ]],November[[Überstunden     ]])","v":{"v":0,"d":"0.0"}}]
[]
[" ",{"$nulls":3},"Dezember","Woche 1","Überstunden","Woche 2","Überstunden ","Woche 3","Überstunden  ","Woche 4","Überstunden   ","Woche 5","Überstunden    "]
[{"$nulls":4},"Montag"]
[{"$nulls":4},"Dienstag"]
[{"$nulls":4},"Mittwoch"]
[{"$nulls":4},"Donnerstag"]
[{"$nulls":4},"Freitag"]
[{"$nulls":4},"Samstag"]
[{"$nulls":4},"Sonntag"]
[{"$nulls":4},"Wöchentliche Stunden gesamt",{"$f":"SUBTOTAL(109,Dezember[Woche 1])","v":{"v":0,"d":"0.0"}},{"$f":"SUBTOTAL(109,Dezember[Überstunden])","v":{"v":0,"d":"0.0"}},{"$f":"SUBTOTAL(109,Dezember[Woche 2])","v":{"v":0,"d":"0.0"}},{"$f":"SUBTOTAL(109,Dezember[[Überstunden ]])","v":{"v":0,"d":"0.0"}},{"$f":"SUBTOTAL(109,Dezember[Woche 3])","v":{"v":0,"d":"0.0"}},{"$f":"SUBTOTAL(109,Dezember[[Überstunden  ]])","v":{"v":0,"d":"0.0"}},{"$f":"SUBTOTAL(109,Dezember[Woche 4])","v":{"v":0,"d":"0.0"}},{"$f":"SUBTOTAL(109,Dezember[[Überstunden   ]])","v":{"v":0,"d":"0.0"}},{"$f":"SUBTOTAL(109,Dezember[Woche 5])","v":{"v":0,"d":"0.0"}},{"$f":"SUBTOTAL(109,Dezember[[Überstunden    ]])","v":{"v":0,"d":"0.0"}}]
[" ",{"$nulls":3},{"$f":"TEXT(DATEVALUE(Dezember[[#Headers],[Dezember]]&\" \"&YEAR(TODAY())),\"MMM.\")&\" Gesamt: Reguläre Arbeitsstunden\"","v":"Dez. Gesamt: Reguläre Arbeitsstunden"},{"$f":"SUM(Dezember[Woche 1],Dezember[Woche 2],Dezember[Woche 3],Dezember[Woche 4],Dezember[Woche 5])","v":{"v":0,"d":"0.00"}},{"$nulls":5},{"$f":"TEXT(DATEVALUE(Dezember[[#Headers],[Dezember]]&\" \"&YEAR(TODAY())),\"MMM.\")&\" gesamt: Überstunden\"","v":"Dez. gesamt: Überstunden"},null,{"$f":"SUM(L130:L136,N130:N136,P130:P136,R130:R136,T130:T136)","v":{"v":0,"d":"0.0"}}]